bitfinex/quotes_ETHUSD_20240612
["timestamp","ask_amount","ask_price","bid_price","bid_amount"]
[1718195919345,1.43344514,3627.4,3626.4,8.2727]
[1718195919546,7.0439,3627.8,3626.5,2.75744]
[1718195919778,7.0439,3627.8,3626.4,9.375743]
[1718195919779,9.0798,3629.3,3626.6,8.32734836]
[1718195920083,9.0798,3629.3,3626.6,8.2722]
[1718195920388,2.75551,3629.1,3627.6,2.75661]
[1718195920586,2.75551,3629.1,3626.9,7.3787]
[1718195920587,2.75465,3630.3,3627.7,11.2697]
[1718195920743,0.275465,3630.2,3628.3,2.75607]
[1718195920941,0.275465,3630.2,3627.8,1.18208736]
[1718195920942,2.75483,3630.0,3628.8,2.75572]
[1718195921147,2.75483,3630.0,3628.2,2.75612]
[1718195921461,2.75483,3630.0,3627.8,1.12697]
[1718195921462,2.75483,3630.0,3628.4,2.756]
[1718195921649,2.7564,3630.6,3628.5,3.0551114]
[1718195922176,2.7564,3630.6,3629.2,2.75541]
[1718195922647,0.002,3630.6,3629.6,2.75505]
[1718195923064,2.7547,3630.2,3628.6,3.0]
[1718195923383,2.7547,3630.2,3628.4,3.0]
[1718195923584,0.277621,3630.6,3628.4,3.0]
[1718195923585,0.277621,3630.6,3628.9,2.75562]
[1718195923757,0.002,3630.6,3628.9,2.75562]
[1718195924079,2.75445,3630.5,3628.9,2.75464681]
[1718195924280,0.002,3630.6,3628.4,3.0]
[1718195924281,0.002,3630.6,3629.3,2.75533]
[1718195924491,0.002,3630.6,3629.6,2.75511]
[1718195925582,0.002,3630.6,3629.0,2.7555]
[1718195925786,0.002,3630.6,3628.6,7.2555]
[1718195925787,1.43344514,3630.5,3628.6,2.75587]
[1718195926015,1.43344514,3630.5,3628.7,8.2674]
[1718195926284,0.002,3630.6,3628.7,8.2674]
[1718195926285,1.43344514,3629.9,3628.7,8.2674]
[1718195926491,2.75522,3629.5,3628.7,8.2674]
[1718195926651,1.98344514,3629.4,3628.7,8.2674]
[1718195927263,5.27,3631.1,3628.7,8.2674]
[1718195927482,2.75485,3630.0,3628.7,8.2674]
[1718195927779,1.43344514,3629.9,3628.7,8.2674]
[1718195927943,1.43344514,3629.9,3628.8,2.75572]
[1718195928346,2.75508,3629.7,3628.7,8.2674]
[1718195928586,2.75561,3629.0,3628.7,8.2674]
[1718195928791,1.98344514,3628.9,3625.9,6.9522]
[1718195928959,1.43344514,3628.8,3625.9,6.9522]
[1718195929162,0.55,3628.7,3625.9,6.9522]
[1718195929466,1.43344514,3628.6,3626.0,0.05513962]
[1718195929664,0.55,3628.7,3627.3,2.75686]
[1718195929987,0.55,3628.7,3626.0,0.05513962]
[1718195929988,0.55,3628.9,3627.7,2.7565]
[1718195930153,1.98344514,3628.9,3627.7,2.7565]
[1718195930355,2.75514,3629.6,3628.2,2.75613]
[1718195930591,1.43344514,3629.5,3628.2,2.75613]
[1718195931463,1.43344514,3629.5,3625.4,0.54397564]
[1718195931464,1.43344514,3627.2,3625.4,0.54397564]
[1718195931654,1.43344514,3626.6,3624.8,0.54397564]
[1718195931983,1.43344514,3626.6,3624.0,3.82994319]
[1718195931984,1.43344514,3626.6,3624.1,0.23815233]
[1718195932152,2.75785,3626.0,3624.2,2.7592]
[1718195932351,2.75838,3625.4,3624.0,0.23815233]
[1718195932549,2.75838,3625.4,3623.6,2.75964]
[1718195932855,0.55,3625.3,3623.6,2.75964]
[1718195933702,2.75793,3626.0,3622.7,2.76036]
[1718195933905,1.98344514,3625.9,3624.3,2.75908]
[1718195934071,1.98344514,3625.9,3624.5,2.75897]
[1718195934810,6.8903,3627.2,3624.6,0.0551739]
[1718195934971,2.75685,3627.4,3625.7,2.75803]
[1718195935374,6.8903,3628.2,3625.0,3.0]
[1718195935375,2.75642,3627.9,3626.0,2.75779]
[1718195935915,2.75642,3627.9,3625.3,5.75836]
[1718195936114,2.75642,3627.9,3624.7,0.97247439]
[1718195936115,2.75642,3627.9,3626.0,2.75779]
[1718195936882,2.75664,3627.6,3626.0,2.75779]
[1718195937197,2.75688,3627.3,3626.0,2.75779]
[1718195937525,1.98344514,3627.2,3626.0,2.75779]
[1718195937833,2.75703,3627.1,3625.5,2.75822]
[1718195937980,0.55,3627.0,3625.9,2.75789]
[1718195938175,6.8903,3628.2,3624.7,0.97247439]
[1718195938176,2.75659,3627.7,3624.7,0.97247439]
[1718195938412,2.75682,3627.4,3625.7,2.75803]
[1718195938615,1.43344514,3627.3,3625.7,2.75803]
[1718195938820,0.002,3626.0,3625.7,2.75803]
[1718195939637,0.002,3626.0,3625.8,0.05515701]
[1718195939950,0.002,3626.0,3625.9,0.33647164]
[1718195940449,2.75584,3628.7,3626.0,7.3596]
[1718195940597,1.43344514,3628.6,3626.0,7.3596]
[1718195940973,1.43344514,3628.6,3626.1,3.0]
[1718195941574,2.75584,3628.7,3626.1,3.0]
[1718195941827,1.43344514,3628.6,3626.5,0.65736064]
[1718195942002,2.75561,3629.0,3626.6,0.05513254]
[1718195942188,1.43344514,3628.9,3626.7,0.65128137]
[1718195942372,1.43344514,3628.9,3626.8,0.05513113]
[1718195942684,1.43344514,3628.9,3626.2,1.06409187]
[1718195942883,2.7565,3627.8,3626.6,2.75732]
[1718195943083,2.75721,3626.9,3625.1,7.2738]
[1718195943387,2.75721,3626.9,3625.3,2.75834]
[1718195943581,0.55,3626.8,3625.3,2.75834]
[1718195944184,0.55,3626.8,3625.5,2.75816]
[1718195944386,2.75684,3627.4,3625.8,2.758]
[1718195944612,1.43344514,3627.3,3625.8,2.758]
[1718195944845,0.55,3627.2,3625.8,2.758]
[1718195945044,0.55,3627.2,3623.5,7.4355]
[1718195945045,1.43344514,3626.5,3623.5,7.4355]
[1718195945229,1.43344514,3626.5,3624.5,2.75896]
[1718195945230,2.75781,3626.1,3624.5,2.75896]
[1718195945404,4.19125514,3626.1,3624.6,0.05517119]
[1718195945818,2.75803,3625.8,3624.5,2.75896]
[1718195946039,2.75845,3625.3,3623.6,2.75964]
[1718195946346,2.75845,3625.3,3623.7,0.75741844]
[1718195946648,0.55,3625.7,3624.1,2.75924]
[1718195946853,2.75818,3625.6,3624.2,0.05517678]
[1718195947021,2.7584,3625.3,3623.5,10.19524]
[1718195947210,2.75854,3625.1,3623.5,10.19524]
[1718195947638,2.75854,3625.1,3622.3,1.103779]
[1718195947639,2.75854,3625.1,3622.6,7.1793]
[1718195947859,1.43344514,3625.2,3622.6,7.1793]
[1718195947860,2.75914,3624.4,3622.9,2.76017]
[1718195948156,0.55,3625.0,3623.3,2.75986]
[1718195948157,3.30862,3625.0,3623.3,2.75986]
[1718195948316,2.75878,3624.8,3623.4,0.05518878]
[1718195948510,2.75825,3625.5,3624.0,2.75934]
[1718195949021,2.75782,3626.1,3624.2,2.75921]
[1718195949227,2.75795,3625.9,3624.2,2.75921]
[1718195949452,1.43344514,3625.8,3624.2,2.75921]
[1718195949638,1.43344514,3625.8,3624.2,3.035131]
[1718195949877,2.75795,3625.9,3624.4,2.75901]
[1718195950176,1.43344514,3625.7,3624.4,2.75901]
[1718195950369,0.002,3624.6,3624.4,2.75901]
[1718195950673,0.002,3624.6,3623.3,2.75991]
[1718195950825,0.002,3624.6,3623.4,0.70985002]
[1718195951023,0.002,3624.6,3623.3,2.75991]
[1718195951024,1.43544514,3624.6,3623.3,2.75991]
[1718195951226,2.75954,3623.8,3623.5,8.2782]
[1718195951447,4.19307514,3623.7,3623.5,8.2782]
[1718195951619,0.55,3623.6,3623.5,8.2782]
[1718195951824,0.55,3623.6,3622.4,2.76053]
[1718195952062,0.55,3623.6,3622.4,3.036583]
[1718195952316,0.55,3623.6,3621.4,2.76129]
[1718195952317,2.76035,3622.8,3621.4,2.76129]
[1718195952535,2.76035,3622.8,3620.3,6.9112]
[1718195952536,2.75994,3623.3,3621.7,2.76111]
[1718195952810,2.75994,3623.3,3620.3,6.9112]
[1718195952811,1.98344514,3623.2,3621.9,2.76096]
[1718195953193,2.76007,3623.1,3621.9,2.76096]
[1718195953389,2.76023,3622.9,3621.3,2.76137]
[1718195953601,1.98344514,3623.0,3620.3,6.9112]
[1718195953602,2.76072,3622.3,3620.7,2.76182]
[1718195953802,2.76027,3622.9,3620.8,0.74718581]
[1718195954110,1.98344514,3622.8,3620.9,0.05522569]
[1718195954330,10.0996,3623.6,3621.9,2.76094]
[1718195954475,0.002,3624.6,3620.8,2.76179]
[1718195954476,2.75934,3624.1,3622.4,2.7606]
[1718195954670,2.75948,3623.9,3622.6,2.76043]
[1718195954916,2.75911,3624.4,3623.0,2.7601]
[1718195955215,1.43344514,3624.3,3623.0,2.7601]
[1718195955655,1.43344514,3624.1,3621.8,6.8827]
[1718195955926,2.27,3624.5,3621.9,5.76091]
[1718195955927,2.75973,3623.6,3621.9,5.76091]
[1718195956105,2.75973,3623.6,3620.9,6.9435]
[1718195956106,2.75984,3623.4,3622.1,2.76078]
[1718195956283,4.19328514,3623.4,3622.1,2.76078]
[1718195956481,0.55,3623.3,3622.1,2.76078]
[1718195956730,2.75936,3624.1,3622.6,2.76044]
[1718195956945,1.43344514,3624.0,3622.6,2.76044]
[1718195957514,1.43344514,3624.0,3622.1,2.76081]
[1718195957515,2.75979,3623.5,3622.1,2.76081]
[1718195957723,1.43344514,3623.4,3622.1,2.76081]
[1718195958603,2.27,3624.5,3622.8,2.76026]
[1718195958790,1.43344514,3624.4,3622.8,2.76026]
[1718195958986,4.19259514,3624.4,3622.8,2.76026]
[1718195959293,5.31808465,3624.4,3622.8,2.76026]
[1718195959503,5.31808465,3624.4,3623.2,2.75998]
[1718195959504,4.19259514,3624.4,3623.2,2.75998]
[1718195959943,4.19259514,3624.4,3622.3,7.2121]
[1718195959944,0.002,3624.6,3623.4,2.75982]
[1718195960090,0.002,3624.6,3623.8,2.75948]
[1718195960292,0.002,3624.6,3623.9,3.05518133]
[1718195960490,0.002,3624.6,3624.1,2.75929]
[1718195960700,0.002,3624.6,3624.2,0.0551761]
[1718195960898,0.002,3624.6,3624.3,0.05517598]
[1718195962308,0.002,3624.6,3624.4,2.75907]
[1718195962507,0.002,3624.6,3624.5,0.05517438]
[1718195962939,0.002,3624.6,3624.2,3.0]
[1718195963123,0.002,3624.6,3623.9,2.75941]
[1718195963124,0.002,3624.6,3624.0,3.0]
[1718195963297,0.002,3624.6,3624.0,3.575941]
[1718195963520,2.48418,3625.6,3624.1,3.51894067]
[1718195963742,2.48418,3625.6,3624.2,3.0]
[1718195963949,2.48418,3625.6,3624.3,0.05517579]
[1718195964120,2.48418,3625.6,3624.4,2.75903]
[1718195964436,2.48418,3625.6,3624.5,0.70613253]
[1718195964996,0.4318329,3626.1,3625.0,2.75855]
[1718195965534,6.8682,3627.3,3625.0,2.75855]
[1718195965736,1.43344514,3626.8,3625.0,2.75855]
[1718195966038,2.75773,3626.2,3625.0,2.75855]
[1718195966198,2.75802,3625.8,3624.5,3.40992922]
[1718195966603,2.75802,3625.8,3624.7,2.7588]
[1718195966829,2.75802,3625.8,3624.8,0.05516946]
[1718195967029,2.75768,3626.3,3625.3,2.75837]
[1718195967228,2.7578,3626.1,3625.0,2.75859]
[1718195967460,2.75742,3626.6,3625.1,0.273859]
[1718195967661,2.75742,3626.6,3625.2,2.75839]
[1718195967662,4.19086514,3626.6,3625.2,2.75839]
[1718195967971,6.8682,3627.3,3624.2,3.0]
[1718195967972,1.43344514,3626.5,3624.7,3.0]
[1718195968199,1.43344514,3626.5,3621.7,6.9664]
[1718195968200,2.27,3625.2,3621.7,6.9664]
[1718195968350,2.75968,3623.6,3621.7,6.9664]
[1718195968554,2.75968,3623.6,3621.8,0.75184902]
[1718195968769,2.27,3625.2,3621.8,0.75184902]
[1718195968770,2.75936,3624.1,3622.7,2.76034]
[1718195968937,2.75936,3624.1,3621.8,0.75184902]
[1718195968938,2.75936,3624.1,3622.9,2.76015]
[1718195969142,2.75936,3624.1,3621.8,0.69664]
[1718195969143,2.75936,3624.1,3623.1,2.76006]
[1718195969448,2.75897,3624.6,3623.3,2.75987]
[1718195969667,2.75907,3624.4,3623.3,2.75987]
[1718195970839,2.7587,3624.9,3623.5,2.75975]
[1718195971035,4.19214514,3624.9,3623.5,2.75975]
[1718195972047,1.98344514,3624.8,3623.0,2.76009]
[1718195972248,2.27,3625.2,3622.4,3.0]
[1718195972249,2.75933,3624.1,3622.4,3.0]
[1718195972584,2.75891,3624.7,3623.2,2.75997]
[1718195972876,1.98344514,3624.6,3623.2,2.75997]
[1718195973049,2.75891,3624.7,3623.5,2.7597]
[1718195973838,2.75891,3624.7,3623.2,0.275997]
[1718195974051,4.19235514,3624.7,3623.3,2.75989]
[1718195974338,0.2769,3625.5,3620.6,0.54397564]
[1718195974339,1.43344514,3624.6,3620.6,0.54397564]
[1718195974580,2.7599,3623.4,3622.4,2.76059]
[1718195975265,2.76022,3622.9,3621.2,2.76145]
[1718195975543,3.57,3624.5,3621.2,2.76145]
[1718195975544,2.75949,3623.9,3622.3,2.76066]
[1718195975747,1.43344514,3623.8,3622.3,2.76066]
[1718195975943,3.11615,3624.4,3622.8,2.76024]
[1718195976183,2.75933,3624.1,3622.8,2.76024]
[1718195976478,2.75933,3624.1,3623.1,2.76006]
[1718195976686,2.75933,3624.1,3622.6,2.76037]
[1718195976844,2.75933,3624.1,3622.9,2.76018]
[1718195977263,2.75933,3624.1,3622.7,0.276037]
[1718195977478,2.75933,3624.1,3622.8,0.05519775]
[1718195977650,2.75933,3624.1,3622.7,0.276037]
[1718195977651,2.75933,3624.1,3622.1,3.0]
[1718195978064,2.75933,3624.1,3622.9,2.76021]
[1718195978269,2.75933,3624.1,3622.4,2.76052]
[1718195978270,3.035263,3624.1,3622.4,2.76052]
[1718195978488,4.46870814,3624.1,3622.4,3.48103224]
[1718195978846,2.75962,3623.7,3622.4,2.76052]
[1718195980063,2.75962,3623.7,3621.7,3.0]
[1718195980064,2.75962,3623.7,3622.7,2.76032]
[1718195980276,2.75962,3623.7,3621.7,3.0]
[1718195980277,2.75926,3624.2,3622.9,2.76021]
[1718195980600,2.75926,3624.2,3621.7,5.76106]
[1718195980601,2.75954,3623.8,3623.0,0.35366837]
[1718195980796,2.75954,3623.8,3622.5,5.76051]
[1718195981112,2.75954,3623.8,3622.7,2.7603]
[1718195981254,2.75954,3623.8,3622.8,3.0]
[1718195981592,2.75923,3624.2,3623.0,2.76012]
[1718195981949,2.75991,3623.4,3621.8,2.76105]
[1718195982151,2.76036,3622.8,3621.7,2.7611]
[1718195982349,1.43344514,3623.3,3622.1,2.76081]
[1718195982350,2.75993,3623.3,3622.1,2.76081]
[1718195982549,2.75993,3623.3,3622.3,2.76061]
[1718195982787,2.75962,3623.7,3622.3,2.76061]
[1718195983084,7.0029,3624.5,3622.0,7.4649]
[1718195983248,7.0029,3624.5,3622.2,2.76068]
[1718195983249,2.75972,3623.6,3622.2,2.76068]
[1718195983451,2.41063514,3624.4,3620.5,5.03198]
[1718195983452,1.43344514,3623.5,3621.8,2.76105]
[1718195983692,2.76022,3622.9,3621.8,2.76105]
[1718195986368,2.76049,3622.6,3621.4,2.76134]
[1718195986907,4.19393514,3622.6,3621.4,2.76134]
[1718195987214,2.72098412,3622.3,3621.2,3.0]
[1718195987384,4.15442926,3622.3,3620.9,3.0]
[1718195987693,4.15442926,3622.3,3621.0,0.576177]
[1718195988054,4.15442926,3622.3,3621.1,2.76157]
[1718195988252,1.43344514,3622.1,3619.2,7.52877564]
[1718195988519,1.43344514,3621.0,3619.3,1.67718691]
[1718195988652,2.76175,3620.9,3619.5,2.76275]
[1718195988849,7.4636,3621.6,3618.8,2.765]
[1718195988850,2.76142,3621.4,3619.7,2.7626]
[1718195989057,1.98344514,3621.3,3619.7,2.7626]
[1718195989251,1.98344514,3621.3,3620.1,2.76232]
[1718195989789,0.55,3621.3,3620.1,2.76232]
[1718195989989,0.55,3621.3,3619.6,0.276275]
[1718195989990,2.76136,3621.4,3619.6,0.276275]
[1718195990224,4.19480514,3621.4,3619.6,0.276275]
[1718195990504,6.9993,3622.4,3619.6,0.276275]
[1718195990505,1.98344514,3621.3,3619.6,0.276275]
[1718195990654,1.43344514,3621.3,3619.6,0.276275]
[1718195990855,1.43344514,3621.2,3619.6,0.276275]
[1718195991058,1.43344514,3621.2,3619.7,2.76263]
[1718195991356,1.43344514,3621.2,3618.8,2.765]
[1718195991357,2.762,3620.6,3619.2,2.76297]
[1718195991665,0.72502887,3621.9,3618.5,7.4431]
[1718195991666,0.8543047,3622.3,3619.3,0.82685042]
[1718195991856,2.76091,3622.0,3620.7,2.76185]
[1718195992508,2.76058,3622.5,3621.1,2.76158]
[1718195993107,3.036638,3622.5,3621.1,2.76158]
[1718195993397,0.276058,3622.5,3620.0,3.0]
[1718195993569,6.8201,3623.0,3621.1,2.76154]
[1718195994093,2.76083,3622.1,3621.1,2.76154]
[1718195994299,2.76114,3621.7,3620.5,2.762]
[1718195994593,1.98344514,3621.6,3618.9,2.7632]
[1718195994906,1.98344514,3621.6,3620.3,2.76213]
[1718195995355,1.98344514,3621.6,3619.3,2.76295]
[1718195995356,2.761,3621.9,3619.7,2.76265]
[1718195995556,1.43344514,3621.9,3620.8,2.76181]
[1718195995994,1.43344514,3621.8,3620.8,2.76181]
[1718195996203,2.27,3622.7,3619.7,3.0]
[1718195996204,1.43344514,3621.7,3619.7,3.0]
[1718195996390,1.43344514,3621.7,3619.8,1.05938804]
[1718195996391,4.19464514,3621.7,3619.8,1.05938804]
[1718195996731,4.19464514,3621.7,3620.2,2.76221]
[1718195997029,0.55,3621.6,3620.2,2.76221]
[1718195997168,1.43344514,3621.5,3620.2,2.76221]
[1718195997370,1.98344514,3621.6,3620.8,2.76178]
[1718195997813,1.98344514,3621.6,3619.9,2.76244]
[1718195997814,2.76141,3621.4,3619.9,2.76244]
[1718195998033,1.98344514,3621.3,3620.4,2.76205]
[1718195998525,1.98344514,3621.3,3619.9,2.76244]
[1718195998669,2.7616,3621.1,3619.9,2.76244]
[1718195998872,1.98344514,3621.0,3619.9,2.76244]
[1718195999105,0.47450451,3620.9,3619.9,2.76244]
[1718195999408,1.98344514,3620.8,3619.9,2.76244]
[1718195999585,0.55,3621.0,3620.3,2.76219]
[1718195999783,9.61909,3621.5,3620.3,2.76219]
[1718195999985,1.43344514,3621.4,3620.3,2.76219]
[1718196000187,1.43344514,3621.3,3619.9,2.76245]
[1718196000495,2.761,3621.9,3620.5,2.76197]
[1718196000684,1.43344514,3621.8,3620.9,2.76174]
[1718196000883,2.76126,3621.6,3620.5,2.76199]
[1718196001091,1.43344514,3621.5,3620.5,2.76199]
[1718196001289,1.43344514,3621.5,3620.8,2.76176]
[1718196001694,2.76092,3622.0,3621.1,2.76153]
[1718196001882,0.2769,3623.0,3620.0,0.276245]
[1718196002083,0.2769,3623.0,3619.1,5.27]
[1718196002084,2.76059,3622.5,3621.4,2.76131]
[1718196002281,2.76082,3622.1,3620.7,2.76189]
[1718196002525,1.43344514,3622.0,3621.1,2.76156]
[1718196003723,2.76054,3622.5,3621.5,2.76121]
[1718196003925,1.43344514,3622.0,3620.7,2.76186]
[1718196004122,1.43344514,3622.0,3620.2,2.76223]
[1718196004334,1.43344514,3622.0,3620.3,4.02950925]
[1718196004988,2.76047,3622.6,3621.3,2.76139]
[1718196005323,1.43344514,3622.5,3621.3,2.76139]
[1718196005844,0.27007317,3623.4,3622.0,2.76084]
[1718196005845,2.75987,3623.4,3622.0,2.76084]
[1718196006120,9.7364,3624.0,3622.9,2.7602]
[1718196006121,2.75956,3623.8,3622.9,2.7602]
[1718196006278,2.75926,3624.2,3622.9,2.7602]
[1718196006483,0.345955,3624.1,3622.9,2.7602]
[1718196007028,0.345955,3624.1,3622.0,0.72889258]
[1718196007029,1.43344514,3624.1,3623.2,2.71219529]
[1718196007186,1.43344514,3624.0,3622.8,2.76028]
[1718196007380,2.75975,3623.6,3622.3,2.76064]
[1718196007598,2.75993,3623.3,3622.3,2.76064]
[1718196007798,1.43344514,3623.2,3622.3,2.76064]
[1718196008044,2.75962,3623.7,3622.6,2.76038]
[1718196008315,2.75962,3623.7,3621.4,6.8286]
[1718196008316,1.43344514,3623.6,3622.8,2.76024]
[1718196008618,2.75921,3624.3,3622.8,2.76024]
[1718196008830,2.76008,3623.1,3621.7,2.76106]
[1718196009128,1.43344514,3623.0,3621.7,2.76106]
[1718196009429,1.43344514,3623.0,3620.8,9.8208]
[1718196009430,2.76051,3622.6,3621.2,2.76144]
[1718196009612,1.43344514,3622.5,3621.2,2.76144]
[1718196009926,1.43344514,3622.5,3621.6,2.7612]
[1718196010226,2.76012,3623.1,3621.6,2.7612]
[1718196010429,1.43344514,3623.0,3622.0,2.76087]
[1718196011121,2.76024,3622.9,3621.6,2.76119]
[1718196011431,1.43344514,3622.8,3621.6,2.76119]
[1718196012998,2.76038,3622.7,3621.6,2.76119]
[1718196013224,1.43344514,3622.6,3621.6,2.76119]
[1718196013398,2.76065,3622.4,3621.1,2.76157]
[1718196013598,1.43344514,3622.3,3621.1,2.76157]
[1718196014095,1.43344514,3622.3,3620.8,7.059]
[1718196014096,0.41938251,3622.6,3621.6,2.76117]
[1718196014428,3.19237023,3623.0,3621.6,2.76117]
[1718196014429,1.43344514,3622.5,3621.6,2.76117]
[1718196014630,3.19237023,3623.0,3620.8,7.059]
[1718196014836,1.86560537,3623.0,3620.9,3.5580072]
[1718196015039,1.86560537,3623.0,3620.9,6.50278672]
[1718196015040,1.43344514,3622.9,3620.9,6.50278672]
[1718196015192,1.43344514,3622.8,3621.4,2.7613]
[1718196015401,1.89602968,3622.8,3621.4,2.7613]
[1718196016139,1.89602968,3622.8,3621.0,2.76165]
[1718196016140,2.76095,3622.0,3621.0,2.76165]
[1718196016440,4.19439514,3622.0,3621.0,2.76165]
[1718196017131,1.43344514,3621.9,3621.0,2.76165]
[1718196017561,2.76118,3621.7,3619.2,2.763]
[1718196017849,2.76118,3621.7,3620.3,2.76219]
[1718196017850,2.53464765,3621.6,3620.3,2.76219]
[1718196018834,2.53464765,3621.6,3620.6,2.76192]
[1718196019198,2.76157,3621.2,3620.1,2.76229]
[1718196019403,2.53464765,3621.6,3619.6,2.76268]
[1718196019404,1.43344514,3621.1,3619.6,2.76268]
[1718196019603,0.14334451,3621.0,3619.6,2.76268]
[1718196019819,2.76183,3620.8,3619.6,2.76268]
[1718196020012,2.76201,3620.6,3619.6,2.76268]
[1718196020232,1.43344514,3620.5,3617.9,6.9923]
[1718196020443,2.76241,3620.1,3618.8,2.76333]
[1718196020640,7.2175,3620.5,3618.8,2.76333]
[1718196020641,2.76253,3619.9,3618.8,2.76333]
[1718196020843,1.43344514,3619.8,3618.8,2.76333]
[1718196021048,2.76268,3619.7,3618.4,2.76364]
[1718196021252,0.276241,3620.0,3617.1,2.76463]
[1718196021253,4.19655514,3619.1,3617.1,2.76459]
[1718196021455,1.43344514,3619.1,3617.1,2.76459]
[1718196021630,0.2769,3619.8,3617.4,2.76437]
[1718196021631,2.76259,3619.8,3617.4,2.76437]
[1718196021831,2.76259,3619.8,3617.2,1.02079119]
[1718196021832,0.8543047,3620.2,3618.6,2.76347]
[1718196022035,1.72445368,3620.9,3618.4,6.8906]
[1718196022036,2.90502451,3621.0,3619.1,2.76305]
[1718196022354,4.33846965,3621.0,3619.9,2.76248]
[1718196022513,2.76134,3621.5,3620.3,2.76215]
[1718196022712,1.43344514,3621.4,3620.3,2.76215]
[1718196023552,3.03787,3622.0,3620.7,2.76185]
[1718196023874,1.43344514,3621.9,3620.7,2.76185]
[1718196024040,1.88056765,3621.9,3620.7,2.76185]
[1718196024614,3.03731,3622.7,3621.3,2.7614]
[1718196024813,2.27,3622.8,3620.7,0.75023586]
[1718196024814,1.43344514,3622.6,3621.7,2.76111]
[1718196025044,1.43344514,3622.6,3620.7,0.75023586]
[1718196025045,1.43344514,3622.6,3620.3,3.0]
[1718196025261,1.43344514,3622.6,3620.4,0.74794829]
[1718196025673,1.43344514,3622.6,3621.4,2.76135]
[1718196025832,0.2769,3622.9,3621.4,2.76135]
[1718196026029,1.43344514,3622.8,3621.8,2.76099]
[1718196026239,0.2769,3622.9,3621.8,2.76099]
[1718196026444,0.2769,3623.4,3622.2,2.76072]
[1718196026646,0.2769,3623.4,3622.3,0.05520841]
[1718196026824,0.2769,3623.4,3621.8,1.01032585]
[1718196026825,0.2769,3623.4,3622.5,2.76046]
[1718196027025,1.43344514,3623.4,3622.5,2.76046]
[1718196027255,1.43344514,3623.3,3621.9,2.76096]
[1718196027672,2.75941,3624.0,3622.3,2.76064]
[1718196027887,1.43344514,3623.9,3622.3,2.76064]
[1718196028195,5.27,3624.9,3622.4,0.72279753]
[1718196028196,6.9846,3624.7,3622.4,0.72279753]
[1718196028491,1.43344514,3624.6,3623.3,2.75987]
[1718196028686,0.84180451,3624.5,3623.3,2.75987]
[1718196028836,1.43344514,3624.4,3623.3,2.75987]
[1718196029179,1.43344514,3624.4,3623.5,2.75971]
[1718196029844,1.43344514,3624.3,3622.8,2.76027]
[1718196030080,2.75931,3624.1,3622.8,2.76027]
[1718196030259,2.75931,3624.1,3621.2,6.8931]
[1718196030260,2.75948,3623.9,3622.7,2.7603]
[1718196030463,1.43344514,3623.8,3622.7,2.7603]
[1718196030773,1.43344514,3623.8,3621.2,6.8931]
[1718196030774,1.43344514,3623.6,3622.5,2.76052]
[1718196031276,7.0114,3623.9,3622.5,2.76052]
[1718196031503,1.43344514,3623.8,3622.5,2.76052]
[1718196031639,0.87207761,3623.7,3622.5,2.76052]
[1718196031836,1.43344514,3623.6,3622.5,2.76052]
[1718196032351,1.43344514,3623.6,3621.5,3.0]
[1718196032352,7.0692,3624.7,3622.6,0.77876632]
[1718196032647,1.36344514,3624.7,3623.9,2.75941]
[1718196032858,1.36344514,3624.7,3623.4,2.75981]
[1718196034299,4.12233514,3624.7,3622.9,2.76018]
[1718196034593,2.75908,3624.4,3622.9,2.76018]
[1718196034877,1.43344514,3624.3,3622.9,2.76018]
[1718196035281,0.41223351,3624.6,3623.3,2.75988]
[1718196035453,0.41223351,3624.6,3622.0,7.4597]
[1718196035454,1.43344514,3624.5,3622.0,10.4597]
[1718196035653,1.43344514,3624.5,3623.2,2.75995]
[1718196035980,2.75868,3625.0,3623.2,2.75995]
[1718196035981,1.43344514,3624.4,3623.2,2.75995]
[1718196036552,1.43344514,3624.4,3622.7,2.76034]
[1718196036758,2.75929,3624.2,3623.1,2.76004]
[1718196036966,1.43344514,3624.1,3623.1,2.76004]
[1718196037883,2.75889,3624.7,3623.5,2.75974]
[1718196038093,1.43344514,3624.6,3623.5,2.75974]
[1718196038249,0.14334451,3624.5,3623.5,2.75974]
[1718196038591,1.43344514,3624.6,3623.5,2.75974]
[1718196038762,3.03200567,3625.2,3623.9,2.75944]
[1718196038959,1.43344514,3625.1,3623.9,2.75944]
[1718196039351,2.7587,3624.9,3623.9,2.75944]
[1718196039683,1.43344514,3624.8,3623.9,2.75944]
[1718196039881,0.41921451,3624.7,3623.9,2.75944]
[1718196040087,1.43344514,3624.6,3623.4,2.75976]
[1718196040290,2.759,3624.5,3623.4,2.75976]
[1718196040448,1.43344514,3624.4,3623.4,2.75976]
[1718196040644,2.759,3624.5,3623.4,2.75976]
[1718196040843,2.75862,3625.0,3623.4,2.75976]
[1718196041074,1.70930714,3624.9,3623.4,2.75976]
[1718196041271,2.75879,3624.8,3623.4,2.75976]
[1718196041496,1.43344514,3624.7,3623.4,2.75976]
[1718196042185,2.75899,3624.6,3623.4,2.75976]
[1718196042351,0.275862,3624.9,3622.7,2.76031]
[1718196042547,1.43344514,3624.8,3622.8,1.05816543]
[1718196042778,4.19222514,3624.8,3623.7,2.75957]
[1718196043447,4.19222514,3624.8,3623.3,2.7599]
[1718196044281,2.75924,3624.2,3622.3,2.76065]
[1718196044498,2.75924,3624.2,3622.4,0.79051224]
[1718196044648,4.19268514,3624.2,3623.1,2.76]
[1718196044849,1.43344514,3624.1,3623.1,2.76]
[1718196045044,2.75924,3624.2,3623.1,2.76]
[1718196045245,2.75924,3624.2,3621.8,3.0]
[1718196045246,2.75893,3624.6,3623.4,2.75976]
[1718196045472,1.43344514,3624.5,3623.4,2.75976]
[1718196045788,0.41923751,3624.4,3623.4,2.75976]